fUST/lending_fUST_20250718
["ID","MTS","AMOUNT","RATE_DAILY","PERIOD"]
[372864549,1752783051934,-218.279066,0.0002004,2]
[372864550,1752783051943,-791.06,0.00020096,2]
[372864551,1752783051952,-932.7,0.00020096,2]
[372864552,1752783051962,-744.42,0.00020096,2]
[372864553,1752783051972,-460.0,0.00020096,2]
[372864554,1752783051981,-514.11,0.00020096,2]
[372864555,1752783051991,-467.62564909,0.00020096,2]
[372864556,1752783052000,-460.0,0.00020096,2]
[372864557,1752783052009,-592.57,0.00020097,2]
[372864558,1752783052019,-460.0,0.00020097,2]
[372864559,1752783052028,-460.0,0.00020097,2]
[372864560,1752783052038,-1085.64,0.00020097,2]
[372864561,1752783052047,-505.45,0.00020097,2]
[372864562,1752783052056,-508.61,0.00020098,2]
[372864563,1752783052066,-728.0,0.00020099,2]
[372864564,1752783052075,-500.0,0.00020099,2]
[372864565,1752783052085,-151.0,0.00020099,2]
[372864566,1752783052095,-151.0,0.00020099,2]
[372864567,1752783052108,-151.0,0.00020099,2]
[372864568,1752783052117,-151.0,0.00020099,2]
[372864569,1752783052127,-151.0,0.00020099,2]
[372864570,1752783052136,-971.13,0.00020099,2]
[372864572,1752783052146,-460.0,0.00020099,2]
[372864573,1752783052155,-460.0,0.00020099,2]
[372864574,1752783052165,-460.0,0.00020099,2]
[372864575,1752783052174,-442.64017824,0.00020107,2]
[372864577,1752783052184,-150.0,0.00020118,2]
[372864578,1752783052193,-150.0,0.00020118,2]
[372864579,1752783052202,-150.0,0.00020118,2]
[372864580,1752783052212,-150.0,0.00020118,2]
[372864581,1752783052221,-150.0,0.00020118,2]
[372864582,1752783052231,-647.0,0.00020118,2]
[372864583,1752783052240,-2155.0,0.00020118,2]
[372864584,1752783052249,-500.0,0.00020119,2]
[372864585,1752783052259,-500.0,0.00020119,2]
[372864586,1752783052268,-1000.0,0.00020135,2]
[372864587,1752783052277,-1000.0,0.00020135,2]
[372864588,1752783052287,-500.0,0.00020164,2]
[372864589,1752783052296,-385.988218,0.00020164,2]
[372864590,1752783052305,-385.988218,0.00020164,2]
[372864591,1752783052315,-437.83152,0.00020187,2]
[372864592,1752783052324,-791.06,0.0002037,2]
[372864593,1752783052333,-932.7,0.0002037,2]
[372864594,1752783052343,-744.42,0.0002037,2]
[372864595,1752783052355,-514.11,0.0002037,2]
[372864596,1752783052365,-460.0,0.0002037,2]
[372864597,1752783052374,-460.0,0.0002037,2]
[372864598,1752783052383,-592.57,0.00020371,2]
[372864599,1752783052393,-460.0,0.00020371,2]
[372864600,1752783052402,-460.0,0.00020371,2]
[372864601,1752783052412,-1085.64,0.00020371,2]
[372864602,1752783052422,-505.45,0.00020371,2]
[372864603,1752783052431,-508.61,0.00020372,2]
[372864604,1752783052440,-728.0,0.00020373,2]
[372864605,1752783052450,-500.0,0.00020373,2]
[372864606,1752783052460,-971.13,0.00020373,2]
[372864607,1752783052471,-460.0,0.00020373,2]
[372864608,1752783052482,-460.0,0.00020373,2]
[372864609,1752783052492,-460.0,0.00020373,2]
[372864610,1752783052501,-442.64017824,0.00020383,3]
[372864611,1752783052510,-151.0,0.00020383,2]
[372864612,1752783052520,-215.0738,0.00020541,2]
[372864613,1752783052529,-791.06,0.00020644,2]
[372864614,1752783052538,-932.7,0.00020644,2]
[372864615,1752783052547,-744.42,0.00020644,2]
[372864616,1752783052557,-460.0,0.00020644,2]
[372864617,1752783052566,-514.11,0.00020644,2]
[372864618,1752783052576,-460.0,0.00020644,2]
[372864619,1752783052587,-592.57,0.00020645,2]
[372864620,1752783052596,-460.0,0.00020645,2]
[372864621,1752783052609,-460.0,0.00020645,2]
[372864622,1752783052618,-1085.64,0.00020645,2]
[372864623,1752783052627,-505.45,0.00020645,2]
[372864624,1752783052637,-508.61,0.00020646,2]
[372864625,1752783052647,-728.0,0.00020647,2]
[372864626,1752783052656,-500.0,0.00020647,2]
[372864627,1752783052666,-971.13,0.00020647,2]
[372864628,1752783052676,-460.0,0.00020647,2]
[372864629,1752783052687,-460.0,0.00020647,2]
[372864630,1752783052695,-445.2,0.00020647,2]
[372864631,1752783052705,-442.64017824,0.00020659,3]
[372864632,1752783052714,-800.0,0.00020668,2]
[372864633,1752783052723,-1500.0,0.00020683,2]
[372864634,1752783052732,-899.51193304,0.00020683,2]
[372864635,1752783052742,-791.06,0.00020918,2]
[372864636,1752783052751,-932.7,0.00020918,2]
[372864637,1752783052760,-744.42,0.00020918,2]
[372864638,1752783052770,-460.0,0.00020918,2]
[372864639,1752783052780,-514.11,0.00020918,2]
[372864640,1752783052790,-460.0,0.00020918,2]
[372864641,1752783052801,-592.57,0.00020919,2]
[372864643,1752783052856,-460.0,0.00020919,2]
[372864644,1752783052867,-1085.64,0.00020919,2]
[372864645,1752783052877,-505.45,0.00020919,2]
[372864646,1752783052886,-508.61,0.0002092,2]
[372864647,1752783052896,-728.0,0.00020921,2]
[372864648,1752783052905,-500.0,0.00020921,2]
[372864649,1752783052915,-971.13,0.00020921,2]
[372864650,1752783052924,-460.0,0.00020921,2]
[372864651,1752783052934,-460.0,0.00020921,2]
[372864652,1752783052943,-151.0,0.00020923,2]
[372864653,1752783052952,-218.877199,0.00020923,2]
[372864654,1752783052962,-218.877199,0.00020923,2]
[372864655,1752783052971,-151.0,0.00020923,2]
[372864656,1752783052981,-297.591924,0.00020923,2]
[372864657,1752783052991,-442.64017824,0.00020934,4]
[372864658,1752783053001,-151.0,0.00021042,2]
[372864659,1752783053010,-151.0,0.00021042,2]
[372864660,1752783053020,-501.837,0.00021063,2]
[372864661,1752783053029,-3676.68350825,0.00021181,2]
[372864662,1752783053039,-791.06,0.00021192,2]
[372864663,1752783053049,-932.7,0.00021192,2]
[372864664,1752783053058,-744.42,0.00021192,2]
[372864665,1752783053068,-460.0,0.00021192,2]
[372864666,1752783053077,-514.11,0.00021192,2]
[372864667,1752783053087,-151.0,0.00021192,2]
[372864668,1752783053096,-151.0,0.00021192,2]
[372864669,1752783053109,-460.0,0.00021192,2]
[372864670,1752783053122,-592.57,0.00021193,2]
[372864671,1752783053136,-460.0,0.00021193,2]
[372864672,1752783053150,-1085.64,0.00021193,2]
[372864673,1752783053163,-505.45,0.00021193,2]
[372864674,1752783053175,-508.61,0.00021194,2]
[372864675,1752783053185,-728.0,0.00021195,2]
[372864676,1752783053198,-500.0,0.00021195,2]
[372864677,1752783053210,-971.13,0.00021195,2]
[372864678,1752783053222,-460.0,0.00021195,2]
[372864679,1752783053235,-460.0,0.00021195,2]
[372864680,1752783053248,-442.64017824,0.0002121,4]
[372864681,1752783053260,-570.4268414,0.00021231,2]
[372864682,1752783053273,-791.06,0.00021466,2]
[372864683,1752783053286,-932.7,0.00021466,2]
[372864684,1752783053298,-744.42,0.00021466,2]
[372864685,1752783053311,-460.0,0.00021466,2]
[372864686,1752783053323,-514.11,0.00021466,2]
[372864687,1752783053334,-460.0,0.00021466,2]
[372864688,1752783053345,-592.57,0.00021467,2]
[372864689,1752783053362,-460.0,0.00021467,2]
[372864690,1752783053373,-1085.64,0.00021467,2]
[372864691,1752783053385,-505.45,0.00021467,2]
[372864692,1752783053398,-508.61,0.00021468,2]
[372864693,1752783053410,-728.0,0.00021469,2]
[372864694,1752783053422,-500.0,0.00021469,2]
[372864695,1752783053433,-971.13,0.00021469,2]
[372864696,1752783053443,-460.0,0.00021469,2]
[372864697,1752783053453,-608.28,0.00021469,2]
[372864698,1752783053465,-442.64017824,0.00021486,5]
[372864699,1752783053477,-823.0,0.00021571,2]
[372864700,1752783053488,-159.7589233,0.00021589,2]
[372864701,1752783053500,-159.7589235,0.00021589,2]
[372864702,1752783053513,-791.06,0.0002174,2]
[372864703,1752783053525,-932.7,0.0002174,2]
[372864704,1752783053537,-744.42,0.0002174,2]
[372864705,1752783053550,-460.0,0.0002174,2]
[372864706,1752783053563,-514.11,0.0002174,2]
[372864707,1752783053576,-475.82,0.0002174,2]
[372864708,1752783053589,-151.0,0.00021741,2]
[372864709,1752783053599,-592.57,0.00021741,2]
[372864710,1752783053613,-460.0,0.00021741,2]
[372864711,1752783053623,-1085.64,0.00021741,2]
[372864712,1752783053634,-505.45,0.00021741,2]
[372864713,1752783053645,-508.61,0.00021742,2]
[372864714,1752783053658,-728.0,0.00021742,2]
[372864715,1752783053671,-160.0,0.00021742,2]
[372864716,1752783053683,-971.13,0.00021743,2]
[372864717,1752783053695,-247.56,0.00021743,2]
[372864718,1752783053705,-151.0,0.0002175,2]
[372864719,1752783053716,-151.0,0.0002175,2]
[372864720,1752783053727,-151.0,0.0002175,2]
[372864721,1752783053739,-442.64017824,0.00021762,5]
[372864722,1752783053761,-223.0315306,0.0002191,2]
[372864723,1752783053772,-151.0,0.00021918,2]
[372864724,1752783053784,-150.0,0.00021918,2]
[372864725,1752783053799,-160.0,0.00021954,3]
[372864726,1752783053810,-218.279066,0.00022,7]
[372864727,1752783053822,-218.279066,0.00022,7]
[372864728,1752783053833,-2388.46,0.00022,7]
[372864729,1752783053844,-151.0,0.00022,7]
[372864730,1752783053859,-151.0,0.00022,7]
[372864731,1752783053872,-40543.33,0.00022,2]
[372864732,1752783053883,-151.0,0.00022,7]
[372864733,1752783053895,-151.0,0.00022,7]
[372864734,1752783053906,-226.159111,0.00022,7]
[372864735,1752783053918,-385.988218,0.00022,7]
[372864736,1752783053929,-555.782015,0.00022,7]
[372864737,1752783053941,-385.988218,0.00022,7]
[372864738,1752783053952,-555.782015,0.00022,7]
[372864739,1752783053963,-151.0,0.00022,7]
[372864740,1752783053975,-151.0,0.00022,7]
[372864741,1752783053986,-151.0,0.00022,7]
[372864742,1752783053997,-151.0,0.00022,7]
[372864743,1752783054009,-151.0,0.00022,7]
[372864744,1752783054020,-180.153112,0.00022,7]
[372864745,1752783054031,-180.153112,0.00022,7]
[372864746,1752783054043,-151.0,0.00022,7]
[372864747,1752783054054,-154.0,0.00022,2]
[372864748,1752783054066,-791.06,0.00022014,2]
[372864749,1752783054077,-466.96568915,0.00022014,2]
[372864750,1752783054189,-323.84,0.00022014,2]
[372864751,1752783054204,-141.89431085,0.00022014,2]
[372864752,1752783054214,-744.42,0.00022014,2]
[372864754,1752783054225,-460.0,0.00022014,2]
[372864755,1752783054236,-514.11,0.00022014,2]
[372864756,1752783054246,-592.57,0.00022015,2]
[372864757,1752783054257,-379.69,0.00022015,2]
[372864758,1752783054268,-1085.64,0.00022015,2]
[372864759,1752783054279,-505.45,0.00022015,2]
[372864760,1752783054290,-508.61,0.00022016,2]
[372864761,1752783054301,-728.0,0.00022016,2]
[372864763,1752783054312,-971.13,0.00022017,2]
[372864764,1752783054324,-442.64017824,0.00022038,6]
[372864765,1752783054334,-154.898253,0.00022186,2]
[372864766,1752783054345,-151.0,0.000222,7]
[372864767,1752783054360,-791.06,0.00022288,2]
[372864768,1752783054370,-51.0447196,0.00022288,2]
[372864769,1752783054382,-507.765,0.00022288,2]
[372864770,1752783054943,-460.0,0.00016533,2]
[372864771,1752783054953,-414.376,0.00019513,2]
[372864772,1752783054963,-2859.67937161,0.00020406,2]
[372864773,1752783054973,-373.8902804,0.00022288,2]
[372864774,1752783054982,-744.42,0.00022288,2]
[372864775,1752783054992,-540.03422093,0.00022288,2]
[372864776,1752783055002,-514.11,0.00022288,2]
[372864777,1752783055012,-61.91301765,0.00022289,2]
[372864778,1752783055024,-530.65698235,0.00022289,2]
[372864779,1752783055033,-184.90473015,0.00022289,2]
[372864780,1752783055044,-481.595,0.00022289,2]
[372864798,1752783071899,169.08266623,0.00016434,2]
[372864933,1752783179950,169.08266623,0.00016433,2]
[372865189,1752783387077,222.49289375,0.00016435,2]
[372865338,1752783512350,222.49289374,0.00016435,2]
[372865643,1752783771394,5120.15404981,0.00015983,2]
[372865644,1752783771418,10000.0,0.00015983,2]
[372865645,1752783771441,9779.84595019,0.00015983,2]
[372865887,1752783980091,220.15404981,0.00013699,2]
[372865888,1752783980117,173.89431819,0.00013699,2]
[372866201,1752784231911,-214.0,0.00016527,2]
[372866202,1752784231923,-300.0,0.00016527,2]
[372866203,1752784231933,-297.31248736,0.00016528,2]
[372866204,1752784231946,-162.68751264,0.00016528,2]
[372866205,1752784231956,-460.0,0.00016528,2]
[372866206,1752784231965,-460.0,0.00016528,2]
[372866208,1752784231975,-460.0,0.00016528,2]
[372866210,1752784231984,-460.0,0.00016529,2]
[372866211,1752784231993,-460.0,0.00016529,2]
[372866212,1752784232002,-460.0,0.00016529,2]
[372866213,1752784232012,-460.0,0.00016529,2]
[372866214,1752784232020,-500.0,0.00016529,2]
[372866215,1752784232030,-471.14584976,0.00016529,2]
[372866216,1752784232040,-238.473546,0.00016529,2]
[372866217,1752784232049,-500.0,0.00016529,2]
[372866218,1752784232059,-500.0,0.00016529,2]
[372866219,1752784232068,-500.0,0.00016529,2]
[372866220,1752784232078,-650.55620881,0.00016529,2]
[372866221,1752784232087,-500.0,0.00016529,2]
[372866222,1752784232098,-500.0,0.00016529,2]
[372866223,1752784232109,-500.0,0.00016529,2]
[372866224,1752784232119,-500.0,0.00016529,2]
[372866225,1752784232129,-500.0,0.00016529,2]
[372866226,1752784232140,-500.0,0.00016529,2]
[372866227,1752784232150,-500.0,0.00016529,2]
[372866228,1752784232159,-500.0,0.00016529,2]
[372866229,1752784232168,-500.0,0.00016529,2]
[372866230,1752784232179,-500.0,0.00016529,2]
[372866231,1752784232189,-280.74488854,0.00016529,2]
[372866232,1752784232198,-500.0,0.00016529,2]
[372866233,1752784232208,-500.0,0.00016529,2]
[372866234,1752784232217,-500.0,0.00016529,2]
[372866235,1752784232225,-500.0,0.00016529,2]
[372866236,1752784232234,-334.8469233,0.00016529,2]
[372866237,1752784232243,-500.0,0.00016529,2]
[372866238,1752784232252,-251.36525108,0.00016529,2]
[372866239,1752784232261,-500.0,0.00016529,2]
[372866240,1752784232271,-500.0,0.00016529,2]
[372866241,1752784232280,-500.0,0.00016529,2]
[372866242,1752784232290,-500.0,0.00016529,2]
[372866243,1752784232299,-500.0,0.00016529,2]
[372866244,1752784232308,-500.0,0.00016529,2]
[372866245,1752784232318,-500.0,0.00016529,2]
[372866246,1752784232328,-450.0,0.00016529,2]
[372866247,1752784232337,-500.0,0.00016529,2]
[372866248,1752784232347,-500.0,0.00016529,2]
[372866249,1752784232359,-500.0,0.00016529,2]
[372866250,1752784232369,-500.0,0.00016529,2]
[372866251,1752784232378,-500.0,0.00016529,2]
[372866252,1752784232388,-500.0,0.00016529,2]
[372866253,1752784232397,-500.0,0.00016529,2]
[372866254,1752784232407,-500.0,0.00016529,2]
[372866255,1752784232417,-303.00602257,0.00016529,2]
[372866289,1752784237785,-460.0,0.00016528,2]
[372866290,1752784237795,-196.99397743,0.00016529,2]
[372866291,1752784237804,-500.0,0.00016529,2]
[372866292,1752784237814,-500.0,0.00016529,2]
[372866293,1752784237822,-500.0,0.00016529,2]
[372866294,1752784237832,-460.0,0.00016529,2]
[372866295,1752784237842,-460.0,0.00016529,2]
[372866296,1752784237851,-460.0,0.00016529,2]
[372866297,1752784237864,-425.13211878,0.00016529,2]
[372866298,1752784237874,-500.0,0.00016529,2]
[372866299,1752784237884,-460.0,0.00016529,2]
[372866300,1752784237894,-460.0,0.00016529,2]
[372866301,1752784237904,-460.41031252,0.00016529,2]
[372866302,1752784237914,-460.0,0.00016532,2]
[372866303,1752784237924,-460.0,0.00016532,2]
[372866304,1752784237934,-460.0,0.00016532,2]
[372866305,1752784237943,-460.0,0.00016532,2]
[372866306,1752784237953,-460.0,0.00016532,2]
[372866308,1752784237962,-460.0,0.00016532,2]
[372866309,1752784237971,-460.0,0.00016532,2]
[372866310,1752784237981,-25.44274744,0.00016532,2]
[372866311,1752784237992,-434.55725256,0.00016532,2]
[372866312,1752784238002,-460.0,0.00016532,2]
[372866313,1752784238012,-409.78985003,0.00016533,2]
[372866314,1752784238023,-50.21014997,0.00016533,2]
[372866315,1752784238033,-573.69779953,0.00016533,2]
[372866316,1752784238042,-460.0,0.00016533,2]
[372866317,1752784238052,-460.0,0.00016533,2]
[372866318,1752784238061,-460.0,0.00016533,2]
[372866319,1752784238071,-460.0,0.00016533,2]
[372866320,1752784238080,-46.5920505,0.00016533,2]
[372866359,1752784239895,-457.48330596,0.00016528,2]
[372866360,1752784239907,-2.51669404,0.00016528,2]
[372866361,1752784239917,-413.4079495,0.00016533,2]
[372866362,1752784239926,-46.91666108,0.00016533,2]
[372866390,1752784243071,-384.91371845,0.00016533,2]
[372866391,1752784243082,-460.9288975,0.00016533,2]
[372866392,1752784243091,-460.0,0.00016533,2]
[372866393,1752784243101,-314.9923924,0.00016533,2]
[372866394,1752784243122,-460.0,0.00016533,2]
[372866395,1752784243135,-460.0,0.00016533,2]
[372866396,1752784243145,-460.0,0.00016533,2]
[372866397,1752784243156,-460.0,0.00016533,2]
[372866398,1752784243165,-460.0,0.00016533,2]
[372866399,1752784243175,-460.0,0.00016533,2]
[372866400,1752784243185,-460.0,0.00016533,2]
[372866401,1752784243195,-460.0,0.00016533,2]
[372866403,1752784243205,-460.0,0.00016533,2]
[372866404,1752784243215,-460.0,0.00016533,2]
[372866405,1752784243225,-460.0,0.00016533,2]
[372866406,1752784243235,-439.89990516,0.00016533,2]
[372866407,1752784243245,-460.0,0.00016533,2]
[372866408,1752784243255,-460.0,0.00016533,2]
[372866409,1752784243265,-460.0,0.00016533,2]
[372866410,1752784243276,-460.0,0.00016533,2]
[372866411,1752784243286,-460.0,0.00016533,2]
[372866412,1752784243296,-460.0,0.00016533,2]
[372866413,1752784243306,-460.0,0.00016533,2]
[372866414,1752784243315,-460.0,0.00016533,2]
[372866415,1752784243325,-460.0,0.00016533,2]
[372866416,1752784243334,-509.81961488,0.00016533,2]
[372866417,1752784243344,-460.0,0.00016533,2]
[372866418,1752784243354,-460.0,0.00016533,2]
[372866419,1752784243364,-460.0,0.00016533,2]
[372866420,1752784243373,-500.0,0.00016533,2]
[372866421,1752784243383,-500.0,0.00016533,2]
[372866422,1752784243394,-500.0,0.00016533,2]
[372866423,1752784243403,-460.0,0.00016533,2]
[372866424,1752784243413,-460.0,0.00016533,2]
[372866425,1752784243423,-500.0,0.00016533,2]
[372866426,1752784243432,-460.0,0.00016533,2]
[372866427,1752784243442,-460.0,0.00016533,2]
[372866428,1752784243452,-460.0,0.00016533,2]
[372866429,1752784243639,-460.0,0.00016533,2]
[372866430,1752784243659,-460.0,0.00016533,2]
[372866431,1752784243669,-484.68926773,0.00016533,2]
[372866432,1752784243679,-431.0076076,0.00016533,2]
[372866433,1752784243688,-460.0,0.00016533,2]
[372866434,1752784243698,-460.0,0.00016533,2]
[372866435,1752784243707,-460.0,0.00016533,2]
[372866436,1752784243717,-460.0,0.00016533,2]
[372866437,1752784243726,-500.0,0.00016533,2]
[372866438,1752784243737,-460.0,0.00016533,2]
[372866439,1752784243746,-460.0,0.00016533,2]
[372866440,1752784243755,-517.92026842,0.00016534,2]
[372866441,1752784243765,-463.29777052,0.00016534,2]
[372866442,1752784243774,-460.0,0.00016534,2]
[372866443,1752784243783,-460.0,0.00016534,2]
[372866444,1752784243794,-460.13997826,0.00016534,2]
[372866445,1752784243804,-460.0,0.00016534,2]
[372866446,1752784243814,-460.0,0.00016534,2]
[372866447,1752784243823,-440.03700064,0.00016534,2]
[372866448,1752784243833,-460.0,0.00016534,2]
[372866449,1752784243843,-460.0,0.00016534,2]
[372866450,1752784243851,-460.0,0.00016534,2]
[372866451,1752784243861,-371.85540996,0.00016534,2]
[372866452,1752784243873,-460.0,0.00016534,2]
[372866454,1752784243882,-460.0,0.00016534,2]
[372866455,1752784243891,-194.80513745,0.00016534,2]
[372866456,1752784243901,-460.0,0.00016534,2]
[372866457,1752784243910,-460.0,0.00016534,2]
[372866458,1752784243919,-460.0,0.00016534,2]
[372866459,1752784243929,-460.0,0.00016534,2]
[372866460,1752784243938,-460.0,0.00016534,2]
[372866461,1752784243947,-460.0,0.00016534,2]
[372866462,1752784243957,-460.0,0.00016534,2]
[372866463,1752784243966,-283.87914865,0.00016534,2]
[372866464,1752784243976,-460.0,0.00016534,2]
[372866465,1752784243985,-460.0,0.00016534,2]
[372866466,1752784243995,-460.0,0.00016534,2]
[372866467,1752784244004,-460.0,0.00016534,2]
[372866468,1752784244014,-460.0,0.00016534,2]
[372866469,1752784244023,-460.0,0.00016534,2]
[372866470,1752784244032,-460.21643107,0.00016534,2]
[372866471,1752784244042,-460.0,0.00016534,2]
[372866472,1752784244053,-460.0,0.00016534,2]
[372866473,1752784244062,-462.63046953,0.00016535,2]
[372866474,1752784244072,-460.0,0.00016535,2]
[372866475,1752784244081,-460.0,0.00016535,2]
[372866476,1752784244091,-264.39802173,0.00016535,2]
[372866477,1752784244101,-460.0,0.00016535,2]
[372866478,1752784244117,-200.24926051,0.00016535,2]
[372866479,1752784244127,-460.0,0.00016535,2]
[372866480,1752784244140,-460.0,0.00016535,2]
[372866481,1752784244150,-420.0,0.00016709,2]
[372866482,1752784244160,-540.0,0.00016709,2]
[372866483,1752784244170,-914.8489206,0.0001671,2]
[372866484,1752784244179,-460.0,0.00016803,2]
[372866485,1752784244189,-460.0,0.00016803,2]
[372866486,1752784244198,-460.0,0.00016803,2]
[372866487,1752784244207,-460.0,0.00016803,2]
[372866488,1752784244217,-460.0,0.00016803,2]
[372866489,1752784244226,-460.0,0.00016806,2]
[372866490,1752784244235,-568.45937505,0.00016806,2]
[372866491,1752784244245,-460.0,0.00016806,2]
[372866492,1752784244255,-176.80322533,0.00016807,2]
[372866493,1752784244264,-460.0,0.00016807,2]
[372866494,1752784244274,-460.0,0.00016807,2]
[372866495,1752784244283,-413.89650142,0.00016807,2]
[372866496,1752784244293,-460.0,0.00016807,2]
[372866497,1752784244302,-516.8448153,0.00016807,2]
[372866498,1752784244313,-221.03076702,0.00016807,2]
[372866499,1752784244322,-460.0,0.00016807,2]
[372866500,1752784244331,-460.0,0.00016807,2]
[372866501,1752784244341,-460.0,0.00016807,2]
[372866502,1752784244351,-550.42758763,0.00016807,2]
[372866503,1752784244360,-460.0,0.00016807,2]
[372866504,1752784244372,-460.0,0.00016807,2]
[372866505,1752784244382,-460.0,0.00016807,2]
[372866506,1752784244391,-460.0,0.00016807,2]
[372866507,1752784244401,-460.0,0.00016807,2]
[372866508,1752784244411,-460.0,0.00016807,2]
[372866509,1752784244420,-460.0,0.00016807,2]
[372866510,1752784244429,-460.0,0.00016807,2]
[372866511,1752784244439,-460.0,0.00016807,2]
[372866512,1752784244448,-460.0,0.00016807,2]
[372866513,1752784244457,-460.0,0.00016807,2]
[372866514,1752784244467,-460.0,0.00016807,2]
[372866515,1752784244476,-460.0,0.00016807,2]
[372866516,1752784244486,-460.0,0.00016808,2]
[372866517,1752784244496,-416.49974055,0.00016808,2]
[372866518,1752784244505,-460.0,0.00016808,2]
[372866519,1752784244515,-460.0,0.00016808,2]
[372866520,1752784244525,-463.17609416,0.00017077,2]
[372866521,1752784244535,-460.0,0.00017077,2]
[372866522,1752784244544,-460.0,0.0001708,2]
[372866523,1752784244554,-460.0,0.0001708,2]
[372866524,1752784244564,-607.09261709,0.00017081,2]
[372866525,1752784244573,-460.0,0.00017081,2]
[372866526,1752784244582,-460.0,0.00017081,2]
[372866527,1752784244592,-439.89990516,0.00017081,2]
[372866528,1752784244602,-605.91311645,0.00017081,2]
[372866529,1752784244611,-460.0,0.00017081,2]
[372866530,1752784244622,-596.46,0.00017081,2]
[372866531,1752784244631,-460.0,0.00017082,2]
[372866532,1752784244641,-460.0,0.00017082,2]
[372866533,1752784244651,-460.0,0.00017351,2]
[372866534,1752784244660,-460.0,0.00017354,2]
[372866535,1752784244670,-460.0,0.00017354,2]
[372866536,1752784244679,-460.0,0.00017355,2]
[372866537,1752784244689,-460.0,0.00017356,2]
[372866538,1752784244699,-460.0,0.00017356,2]
[372866539,1752784244708,-460.0,0.00017625,2]
[372866540,1752784244718,-460.0,0.00017628,2]
[372866541,1752784244728,-460.0,0.00017628,2]
[372866542,1752784244738,-460.0,0.00017629,2]
[372866543,1752784244747,-460.0,0.0001763,2]
[372866544,1752784244757,-460.0,0.0001763,2]
[372866545,1752784244767,-460.0,0.00017899,2]
[372866546,1752784244776,-276.5924598,0.000179,2]
[372866547,1752784244786,-460.0,0.00017902,2]
[372866548,1752784244795,-460.0,0.00017902,2]
[372866549,1752784244805,-460.0,0.00017903,2]
[372866550,1752784244814,-460.0,0.00017904,2]
[372866551,1752784244824,-265.27533492,0.00017904,2]
[372866552,1752784244834,-458.72846878,0.00017999,2]
[372866554,1752784244926,-41.27153122,0.00017999,2]
[372866555,1752784244935,-180.26033216,0.00017999,2]
[372866556,1752784244945,-500.0,0.00017999,2]
[372866557,1752784244955,-500.0,0.00017999,2]
[372866558,1752784244964,-500.0,0.00017999,2]
[372866559,1752784244975,-500.0,0.00017999,2]
[372866561,1752784244985,-500.0,0.00017999,2]
[372866562,1752784244995,-500.0,0.00017999,2]
[372866563,1752784245004,-494.33050813,0.00017999,2]
[372866564,1752784245013,-500.0,0.00017999,2]
[372866565,1752784245025,-500.0,0.00017999,2]
[372866566,1752784245035,-500.0,0.00017999,2]
[372866567,1752784245045,-500.0,0.00017999,2]
[372866568,1752784245055,-500.0,0.00017999,2]
[372866569,1752784245064,-500.0,0.00017999,2]